bitfinex/quotes_ETHUSD_20240716
["timestamp","ask_amount","ask_price","bid_price","bid_amount"]
[1721121429233,0.92659923,3388.1,3387.6,3.10677]
[1721121429430,0.92659923,3388.2,3387.6,3.10677]
[1721121429728,0.92659923,3388.1,3387.6,5.23948]
[1721121430217,0.92659923,3388.1,3387.7,2.95185]
[1721121430588,0.92758458,3388.1,3387.6,2.2876]
[1721121432017,0.92758458,3388.0,3387.6,2.2876]
[1721121432224,0.92758458,3387.9,3387.6,2.2876]
[1721121432831,0.92758458,3387.7,3387.6,2.2876]
[1721121432985,1.23677944,3387.8,3387.6,2.2876]
[1721121433180,1.23677944,3387.7,3387.6,2.2876]
[1721121433681,1.23677944,3387.7,3387.2,6.02928]
[1721121433882,0.92859251,3387.6,3387.2,8.49648]
[1721121434282,0.9288184,3387.5,3387.2,8.49648]
[1721121434684,0.9288184,3387.5,3387.3,2.95219]
[1721121434881,0.9288184,3387.7,3387.4,2.95209]
[1721121435185,0.9288184,3387.7,3387.6,2.95194]
[1721121435500,1.23842453,3387.8,3387.7,2.95185]
[1721121435501,0.9288184,3387.8,3387.7,2.95185]
[1721121435707,0.9288184,3387.9,3387.7,5.36025]
[1721121435908,0.9288184,3388.0,3387.8,4.090679]
[1721121436143,0.9288184,3388.0,3387.9,2.95167]
[1721121436303,1.23842453,3388.2,3387.9,2.95167]
[1721121436497,0.92876383,3388.0,3387.9,2.95167]
[1721121436899,1.23842453,3388.1,3387.9,2.95167]
[1721121437344,1.23842453,3388.1,3387.8,4.090669]
[1721121437492,0.92891533,3387.9,3387.8,4.090679]
[1721121437699,1.23842453,3387.9,3387.8,4.090679]
[1721121438109,1.54797686,3388.1,3387.9,2.95168]
[1721121438110,1.23842453,3388.0,3387.9,2.95168]
[1721121438439,1.23842453,3388.1,3387.9,2.95168]
[1721121439444,0.92890435,3388.0,3387.9,2.95168]
[1721121439643,1.23842453,3388.1,3387.9,2.95168]
[1721121439940,1.23842453,3388.0,3387.9,2.95168]
[1721121440232,1.23844884,3388.1,3387.9,3.26719671]
[1721121440434,0.92885791,3388.0,3387.9,3.26719671]
[1721121440999,1.23844884,3388.2,3388.0,2.95159]
[1721121441000,0.92885791,3388.1,3388.0,2.95159]
[1721121441246,0.92885791,3388.2,3388.1,2.9515]
[1721121441530,1.54806106,3388.5,3388.2,2.95141]
[1721121441531,1.23844884,3388.3,3388.2,2.95141]
[1721121441948,1.23834561,3388.3,3388.2,2.95141]
[1721121443440,0.12118773,3388.7,3388.3,2.9513]
[1721121443747,1.23824113,3388.4,3388.3,2.9513]
[1721121444448,1.23824113,3388.5,3388.3,2.9513]
[1721121445027,1.23824113,3388.5,3388.4,2.2637]
[1721121445239,1.23819475,3388.5,3388.4,2.2637]
[1721121445440,1.23819475,3388.6,3388.5,2.95115]
[1721121445809,1.66898914,3388.7,3388.5,2.95115]
[1721121446046,1.23811561,3388.6,3388.5,2.95115]
[1721121446350,1.66898914,3388.7,3388.5,2.95115]
[1721121446560,0.12118773,3388.7,3388.5,2.95115]
[1721121446737,1.35924339,3388.7,3388.5,2.95115]
[1721121447112,1.23805566,3388.6,3388.5,2.95115]
[1721121447337,0.12118773,3388.7,3388.6,2.95107]
[1721121447338,1.35924339,3388.7,3388.6,2.95107]
[1721121447714,1.3591191,3388.7,3388.6,2.95107]
[1721121448358,0.12118773,3388.7,3388.6,2.95107]
[1721121448534,1.35907372,3388.7,3388.6,2.95107]
[1721121450059,0.12118773,3388.7,3388.6,2.95107]
[1721121450609,0.10618773,3388.7,3388.6,2.95107]
[1721121450850,1.03437655,3388.7,3388.6,2.95107]
[1721121451215,1.03429296,3388.7,3388.6,2.95107]
[1721121452109,0.10618773,3388.7,3388.6,2.95107]
[1721121452308,1.03423246,3388.7,3388.6,2.95107]
[1721121453112,0.10618773,3388.7,3388.6,6.718739]
[1721121454313,1.03422502,3388.7,3388.6,6.718739]
[1721121454640,0.10618773,3388.7,3388.6,6.718739]
[1721121454838,0.10618773,3388.7,3388.6,9.093539]
[1721121455036,0.10618773,3388.7,3388.6,12.044609]
[1721121456410,0.10618773,3388.7,3388.6,15.157609]
[1721121456668,0.92803729,3389.5,3389.3,2.4528]
[1721121456821,0.92803729,3390.1,3389.9,2.94993]
[1721121457008,0.92710468,3390.3,3389.9,2.94993]
[1721121457211,0.92710468,3390.3,3389.6,2.95015]
[1721121457422,1.54517448,3390.6,3389.9,2.94992]
[1721121457423,0.92710468,3390.2,3389.9,2.94992]
[1721121457624,0.92710468,3390.3,3390.0,2.94983]
[1721121457855,1.23613958,3390.4,3390.2,2.94967]
[1721121457856,0.92710468,3390.4,3390.2,2.94967]
[1721121458023,0.92710468,3390.6,3390.2,2.94967]
[1721121458224,0.92710468,3390.8,3390.3,2.94957]
[1721121458557,0.92710468,3390.9,3390.4,2.9495]
[1721121458855,0.92710468,3390.9,3390.3,2.94957]
[1721121458856,0.92710468,3391.1,3390.8,2.94912]
[1721121459025,0.92710468,3391.1,3390.3,3.077]
[1721121459026,0.92710468,3391.0,3390.3,3.077]
[1721121459231,0.92710468,3390.9,3390.3,2.94959]
[1721121459639,0.92491421,3391.0,3390.5,2.94941]
[1721121459845,0.92491421,3391.0,3390.4,2.94947]
[1721121460050,1.29575608,3391.1,3390.5,2.94935]
[1721121460312,0.37084187,3391.1,3390.7,2.94922]
[1721121460744,0.37084187,3391.1,3390.3,3.077]
[1721121460745,0.92491421,3391.3,3390.6,2.94932]
[1721121460942,0.92491421,3391.3,3390.3,3.077]
[1721121460943,3.87364421,3391.3,3390.5,2.9494]
[1721121461315,3.92491788,3391.5,3390.5,5.89874]
[1721121461513,0.97633788,3391.5,3390.5,2.94934]
[1721121461758,0.92491421,3391.5,3390.6,2.94932]
[1721121462066,0.51066032,3391.4,3390.4,2.9495]
[1721121462233,2.94872,3391.3,3390.5,2.94937]
[1721121462725,3.87363421,3391.3,3390.5,2.94937]
[1721121463055,2.94872,3391.3,3390.5,2.94937]
[1721121463429,2.94881,3391.2,3390.3,6.02658]
[1721121463652,0.73330245,3391.1,3390.3,6.02658]
[1721121463964,0.73330245,3391.1,3390.3,2.94958]
[1721121464460,0.73330245,3391.1,3390.4,2.94949]
[1721121465118,0.51066032,3391.4,3390.4,2.94949]
[1721121465324,2.94883,3391.2,3390.4,2.94949]
[1721121465521,0.51066032,3391.4,3390.7,2.94917]
[1721121465756,2.94854,3391.5,3390.7,2.94917]
[1721121465964,2.94883,3391.2,3390.3,3.077]
[1721121466262,2.94883,3391.2,3390.1,2.94975]
[1721121466263,2.94905,3391.0,3390.1,2.94975]
[1721121466909,2.94905,3391.0,3390.2,2.94964]
[1721121467231,2.94864,3391.4,3390.5,2.94934]
[1721121467435,3.92207899,3391.6,3390.7,5.40382]
[1721121467436,2.99986962,3391.6,3390.7,5.40382]
[1721121467743,2.99986962,3391.6,3390.7,8.48082]
[1721121467744,2.94846,3391.6,3390.7,8.48082]
[1721121467951,2.9483,3391.8,3390.9,2.94906]
[1721121468120,2.94812,3392.0,3390.9,2.94906]
[1721121468121,2.94838,3391.7,3390.9,2.94906]
[1721121468321,2.94821,3391.9,3391.0,2.94897]
[1721121468546,3.24829146,3391.8,3391.0,2.94897]
[1721121468870,3.24829146,3391.8,3391.1,2.94888]
[1721121468871,0.29996146,3391.8,3391.1,2.94888]
[1721121469836,0.29996146,3391.8,3391.1,5.89776]
[1721121470365,3.75653116,3392.6,3391.1,5.89776]
[1721121470366,2.94778,3392.4,3391.4,2.9486]
[1721121470568,3.75653116,3392.6,3391.2,2.94879]
[1721121470569,2.94804,3392.1,3391.2,2.94879]
[1721121470734,2.94806,3392.1,3391.2,2.94873]
[1721121470925,3.537726,3392.0,3391.2,2.94873]
[1721121471744,3.537726,3392.0,3391.3,2.94871]
[1721121471962,0.589606,3392.0,3391.3,2.94871]
[1721121472154,2.948,3392.2,3391.3,2.94871]
[1721121472355,2.948,3392.2,3391.4,2.94861]
[1721121473700,2.94777,3392.4,3391.6,2.94845]
[1721121474287,0.05140016,3392.7,3391.9,6.02518]
[1721121474474,0.29989502,3392.7,3392.0,2.9481]
[1721121474786,3.24741502,3392.7,3392.0,2.9481]
[1721121475555,0.29989502,3392.7,3392.1,5.30349]
[1721121475991,0.29989502,3392.7,3391.5,5.4325]
[1721121475992,2.94769,3392.5,3391.5,5.4325]
[1721121476407,2.94769,3392.5,3391.7,2.94836]
[1721121476559,2.94736,3392.9,3392.1,2.948]
[1721121477089,2.94742,3392.8,3392.1,2.948]
[1721121477389,2.94752,3392.7,3391.8,5.23074]
[1721121477592,2.94752,3392.7,3391.8,2.94824]
[1721121477593,0.589485,3392.6,3391.8,2.94824]
[1721121478598,0.589485,3392.6,3392.0,2.9481]
[1721121478763,2.94733,3392.9,3392.0,2.9481]
[1721121478966,3.82373744,3393.1,3392.0,2.9481]
[1721121479261,3.82373744,3393.1,3392.2,2.94792]
[1721121479262,2.94716,3393.1,3392.2,2.94792]
[1721121479864,0.05139196,3393.2,3392.3,2.94783]
[1721121480070,2.99847196,3393.2,3392.3,2.94783]
[1721121480394,3.5416962,3393.1,3392.3,2.94783]
[1721121480568,0.5945362,3393.1,3392.4,2.94776]
[1721121481177,0.5945362,3393.1,3392.5,2.94767]
[1721121481494,2.94689,3393.4,3392.5,2.94767]
[1721121481696,2.94673,3393.6,3392.5,2.94767]
[1721121481697,2.94699,3393.3,3392.5,2.94767]
[1721121481867,2.94707,3393.2,3392.5,2.94767]
[1721121482065,2.94722,3393.1,3392.2,5.37631]
[1721121482386,2.94722,3393.1,3392.2,2.94791]
[1721121482592,0.589422,3393.0,3391.8,8.40012]
[1721121482791,2.9475,3392.7,3391.8,8.40012]
[1721121482990,2.9475,3392.7,3391.9,2.94818]
[1721121483378,2.9477,3392.5,3391.6,3.077]
[1721121483578,2.9482,3391.9,3391.2,5.3728]
[1721121483800,2.9482,3391.9,3391.2,2.2958]
[1721121484100,3.82420744,3392.6,3391.6,2.94845]
[1721121484270,5.31996,3393.1,3391.6,2.94845]
[1721121484271,2.94752,3392.7,3391.7,2.94835]
[1721121484667,2.94736,3392.9,3391.6,3.077]
[1721121484898,2.94736,3392.9,3391.4,2.94862]
[1721121484899,2.948,3392.2,3391.4,2.94862]
[1721121485401,2.94803,3392.1,3391.2,8.32159]
[1721121485587,2.94785,3392.3,3391.2,8.32159]
[1721121485588,3.537718,3392.0,3391.2,8.32159]
[1721121485764,2.94821,3391.9,3391.2,2.2958]
[1721121485968,2.94829,3391.8,3391.0,2.94898]
[1721121486469,2.94829,3391.8,3390.9,2.94905]
[1721121486670,2.94829,3391.8,3391.0,2.94897]
[1721121486894,0.6485998,3391.7,3391.0,2.94897]
[1721121487092,0.6485998,3391.7,3390.7,2.3161]
[1721121487294,2.94885,3391.2,3390.3,6.02658]
[1721121487510,2.94873,3391.3,3390.3,3.077]
[1721121487802,2.94901,3391.0,3390.3,3.077]
[1721121488024,2.94882,3391.2,3390.3,3.077]
[1721121488186,2.9489,3391.1,3390.3,3.077]
[1721121488383,3.538654,3391.1,3390.3,3.077]
[1721121488601,2.94898,3391.0,3390.3,6.02658]
[1721121489093,0.589754,3391.1,3390.3,6.02658]
[1721121489305,3.538724,3391.1,3390.3,3.077]
[1721121489523,2.94908,3390.9,3390.3,3.077]
[1721121489678,0.3538834,3390.8,3390.2,2.4673]
[1721121490317,0.589754,3391.1,3390.3,3.077]
[1721121490485,0.87657744,3391.9,3390.5,2.9494]
[1721121490689,1.7,3392.3,3390.5,2.9494]
[1721121491002,2.94873,3391.3,3390.3,3.077]
[1721121491513,2.3379,3392.2,3390.7,3.077]
[1721121491812,2.94863,3391.4,3390.7,3.077]
[1721121492129,0.294863,3391.3,3390.7,3.077]
[1721121492275,2.94864,3391.4,3390.7,3.077]
[1721121492477,2.94864,3391.4,3390.6,2.94932]
[1721121492885,2.94873,3391.3,3390.5,3.077]
[1721121493383,2.94849,3391.6,3390.7,2.94922]
[1721121493582,2.94827,3391.9,3390.8,2.94914]
[1721121493774,0.294827,3391.8,3390.8,2.94914]
[1721121494503,2.94848,3391.6,3390.8,2.94914]
[1721121494708,2.94848,3391.6,3390.6,2.94933]
[1721121494709,2.94848,3391.6,3390.7,2.9492]
[1721121495108,2.94854,3391.5,3390.7,2.9492]
[1721121495313,2.9488,3391.3,3390.5,3.077]
[1721121495491,2.9488,3391.3,3390.5,6.02641]
[1721121496016,2.94856,3391.5,3390.7,2.94922]
[1721121496878,0.294827,3391.8,3390.9,3.077]
[1721121497079,2.94811,3392.0,3391.1,2.94888]
[1721121497615,2.94811,3392.0,3391.2,2.94878]
[1721121497816,2.94811,3392.0,3391.0,5.23203]
[1721121498314,2.94811,3392.0,3391.1,2.94889]
[1721121498520,2.9483,3391.8,3390.9,2.94904]
[1721121498707,0.29483,3391.7,3391.0,2.94897]
[1721121499112,0.29483,3391.7,3390.5,6.504429]
[1721121499113,0.29483,3391.7,3391.1,2.94886]
[1721121499321,2.9482,3391.9,3391.1,2.94886]
[1721121499827,2.9482,3391.9,3391.2,2.94879]
[1721121499979,0.92388159,3392.3,3391.4,3.077]
[1721121500184,2.94776,3392.4,3391.6,2.94841]
[1721121500798,3.87164159,3392.4,3391.6,2.94841]
[1721121501133,2.94797,3392.2,3391.4,2.9486]
[1721121501295,0.92388159,3392.1,3391.4,2.9486]
[1721121501621,3.87182159,3392.2,3391.2,2.9488]
[1721121501779,0.92388159,3392.1,3391.2,2.9488]
[1721121501982,0.92388159,3392.1,3391.1,2.2831]
[1721121501983,0.92388159,3392.1,3391.3,2.9487]
[1721121502205,0.92388159,3392.0,3391.3,2.9487]
[1721121502484,3.87211159,3391.9,3391.1,2.2831]
[1721121502795,3.87211159,3391.9,3391.1,5.23193]
[1721121502992,3.87378702,3391.9,3391.1,5.23193]
[1721121503199,0.92555702,3391.8,3391.1,5.23193]
[1721121504185,2.94837,3391.7,3391.0,3.077]
[1721121504395,0.92555702,3391.6,3390.9,2.94906]
[1721121504799,0.92555702,3391.5,3391.0,2.94897]
[1721121505000,0.92555702,3391.6,3391.0,2.94897]
[1721121505684,0.92555702,3391.6,3390.9,2.94903]
[1721121505892,0.92555702,3391.5,3390.9,2.94903]
[1721121506128,0.92555702,3391.5,3390.7,2.94923]
[1721121506129,0.92555702,3391.5,3391.0,2.94895]
[1721121506296,0.92555702,3391.7,3391.0,2.94895]
[1721121506788,0.92555702,3391.6,3391.0,2.94895]
[1721121507216,0.92555702,3391.7,3391.0,2.94895]
[1721121507423,0.92555702,3391.6,3391.0,2.94895]
[1721121508035,0.92598802,3391.6,3391.0,2.94895]
[1721121508723,0.92598802,3391.7,3391.2,2.94879]
[1721121509285,1.23465069,3391.9,3391.2,2.94879]
[1721121509487,0.92599983,3391.7,3391.2,2.94879]
[1721121509713,0.92599983,3391.7,3391.6,2.94846]
[1721121509916,0.92599983,3391.9,3391.4,2.94857]
[1721121510925,0.92599983,3391.8,3391.2,5.4389]
[1721121511097,0.92599983,3391.8,3391.4,2.94857]
[1721121512427,0.92599983,3391.7,3391.5,2.94854]
[1721121512801,0.92599983,3391.8,3391.5,2.94854]
[1721121512999,1.23466644,3391.9,3391.5,2.94854]
[1721121513000,0.92599983,3391.7,3391.5,2.94854]
[1721121513426,0.92599983,3391.8,3391.5,2.94853]
[1721121513600,0.92599983,3391.9,3391.6,2.94845]
[1721121513804,0.92599983,3392.0,3391.6,2.94845]
[1721121514545,1.90401761,3392.7,3391.5,0.838743]
[1721121514546,0.92627309,3392.7,3392.0,2.94808]
[1721121514698,0.92627309,3392.6,3392.5,2.94766]
[1721121515099,0.92627309,3392.7,3392.6,2.94759]
[1721121515500,0.92627309,3392.8,3392.6,2.94759]
[1721121515805,0.92627309,3392.7,3392.6,2.94759]
[1721121516018,0.92627309,3392.8,3392.6,2.94759]
[1721121516528,0.92627309,3393.0,3392.8,5.38521]
[1721121516831,0.92627309,3393.1,3393.0,2.94724]
[1721121517535,0.92627309,3393.2,3393.0,2.94724]
[1721121518654,0.92627309,3393.2,3392.8,2.4378]
[1721121518861,0.92627309,3393.2,3392.9,2.94725]
[1721121519239,0.92627309,3393.3,3393.0,2.94721]
[1721121519446,0.92627309,3393.4,3393.0,2.94721]
[1721121519754,0.92627309,3393.3,3393.0,2.94721]
[1721121520666,0.92627309,3393.4,3392.8,5.3852]
[1721121520817,0.92627309,3393.3,3392.9,2.94732]
[1721121521018,0.92627309,3393.2,3393.1,2.94712]
[1721121521266,1.23503079,3393.4,3393.1,2.94712]
[1721121521267,0.92627309,3393.4,3393.1,2.94712]
[1721121521625,0.92419759,3393.5,3393.0,3.077]
[1721121521931,0.92419759,3393.7,3393.5,2.9468]
[1721121522232,1.23503079,3393.9,3393.0,3.077]
[1721121522233,0.92419759,3393.8,3393.0,3.077]
[1721121522436,1.23503079,3393.9,3392.6,3.113]
[1721121522437,0.92419759,3393.9,3393.5,2.3543]
[1721121522632,0.92419759,3394.2,3393.4,3.077]
[1721121522834,3.87057759,3394.0,3393.0,2.9472]
[1721121523053,0.92419759,3393.8,3393.1,2.94714]
[1721121523234,0.92419759,3393.7,3392.8,5.30281]
[1721121523451,4.08691043,3393.6,3392.8,5.30281]
[1721121523622,4.08691043,3393.6,3392.3,3.077]
[1721121523623,2.947,3393.3,3392.3,5.3362]
[1721121523962,2.947,3393.3,3392.4,2.94774]
[1721121524768,2.94708,3393.2,3392.4,2.94774]
[1721121524961,2.94708,3393.2,3392.4,2.94775]
[1721121525262,0.38712776,3393.1,3392.4,2.94775]
[1721121525568,0.92419759,3393.4,3392.5,2.94766]
[1721121525749,0.92419759,3393.5,3392.5,2.94766]
[1721121525953,0.92419759,3393.5,3392.6,2.94759]
[1721121526275,0.92419759,3393.5,3392.9,2.94732]
[1721121526433,1.14012043,3393.6,3393.0,2.94723]
[1721121526624,1.14012043,3393.6,3392.9,2.94727]
[1721121526826,1.14012043,3393.6,3393.0,2.94722]
[1721121527098,0.21592284,3393.6,3393.0,2.94722]
[1721121527628,0.21592284,3393.6,3392.2,2.94787]
[1721121527629,0.92419759,3394.5,3393.4,2.386]
[1721121527823,1.8469865,3395.1,3393.3,3.113]
[1721121527824,0.92419759,3395.1,3394.3,2.386]
[1721121528050,3.86988759,3394.8,3393.8,5.33248]
[1721121528365,3.86988759,3394.8,3393.9,2.94644]
[1721121528564,3.86988759,3394.8,3393.8,2.386]
[1721121528565,0.92242133,3394.7,3394.0,2.94636]
[1721121528781,0.50980064,3394.6,3394.0,2.94636]
[1721121528925,0.50980064,3394.6,3393.8,5.33254]
[1721121529132,0.50980064,3394.6,3393.9,2.94642]
[1721121529323,0.50980064,3394.6,3394.0,2.94635]
[1721121530183,0.92242133,3394.9,3393.8,5.33254]
[1721121530184,0.92242133,3394.9,3393.8,2.386]
[1721121530498,0.92242133,3395.0,3394.0,6.02336]
[1721121530656,2.94562,3394.9,3394.1,2.94627]
[1721121533176,0.05136696,3395.2,3394.2,2.94612]
[1721121533558,0.05136696,3395.2,3394.4,2.94597]
[1721121533754,0.05136696,3395.2,3394.2,2.94612]
[1721121533755,3.2450927,3395.1,3394.2,2.94612]
[1721121534379,3.2450927,3395.1,3394.3,2.9461]
[1721121534697,2.94552,3395.0,3394.1,2.94624]
[1721121535263,2.94552,3395.0,3394.2,2.94613]
[1721121535465,2.94552,3395.0,3394.1,2.94624]
[1721121535686,0.32965497,3394.9,3394.1,2.94624]
[1721121536007,0.32965497,3394.9,3394.2,2.94613]
[1721121536797,0.32965497,3394.9,3394.3,2.9461]
[1721121537331,0.05136696,3395.2,3394.3,2.9461]
[1721121537476,3.37712133,3395.8,3393.8,2.386]
[1721121537477,2.94508,3395.5,3394.6,5.89164]
[1721121537905,2.94517,3395.4,3394.6,2.94582]
[1721121538212,0.294517,3395.3,3394.4,6.02301]
[1721121538376,2.94543,3395.1,3394.4,3.077]
[1721121539576,2.94543,3395.1,3394.3,2.94611]
[1721121539777,2.94587,3394.6,3393.8,2.386]
[1721121539981,0.294517,3395.3,3393.3,10.24698]
[1721121539982,3.240587,3394.5,3393.5,2.94674]
[1721121540203,2.94605,3394.4,3393.5,2.94674]
[1721121540928,2.94605,3394.4,3393.3,5.43568]
[1721121541129,2.94605,3394.4,3393.5,2.94674]
[1721121541425,2.946,3394.5,3393.3,5.43568]
[1721121541576,2.94638,3394.0,3393.1,2.94714]
[1721121541776,2.94664,3393.7,3392.8,5.5657]
[1721121542601,2.94664,3393.7,3393.0,2.94724]
[1721121542998,2.94657,3393.8,3393.0,2.94724]
[1721121543227,2.94664,3393.7,3392.8,8.51307]
[1721121543443,2.94651,3393.9,3393.0,2.94722]
[1721121544015,2.94656,3393.8,3393.0,2.94722]
[1721121544411,2.94665,3393.7,3392.8,9.659184]
[1721121544626,2.94665,3393.7,3392.9,2.94732]
[1721121544834,2.94665,3393.7,3393.0,2.94723]
[1721121545072,2.94646,3393.9,3393.0,5.8944]
[1721121545269,2.94629,3394.1,3393.3,2.94691]
[1721121545755,3.24063,3394.4,3393.1,2.94713]
[1721121545756,2.94656,3393.8,3393.1,2.94713]
[1721121545955,2.9463,3394.1,3393.2,6.02405]
[1721121546165,2.94638,3394.0,3393.2,6.02406]
[1721121546367,2.94648,3393.9,3393.0,2.94722]
[1721121546669,2.94656,3393.8,3393.1,2.94715]
[1721121546836,2.94656,3393.8,3392.9,2.94732]
[1721121547227,2.94667,3393.7,3392.9,2.94732]
[1721121547922,2.94667,3393.7,3393.0,2.94723]
[1721121548568,2.94639,3394.0,3393.0,2.94723]
[1721121548569,2.94651,3393.9,3393.0,2.94723]
[1721121549071,2.94639,3394.0,3393.2,2.94698]
[1721121549653,2.94639,3394.0,3393.3,2.94697]
[1721121549860,3.564992,3394.1,3393.3,2.94697]
[1721121550164,2.94661,3393.8,3393.0,4.093262]
[1721121550371,2.9462,3394.2,3393.1,2.94715]
[1721121550668,2.94639,3394.0,3393.0,1.146032]
[1721121550835,2.94639,3394.0,3392.8,5.5657]
[1721121550836,2.94639,3394.0,3392.8,8.51311]
[1721121551031,2.94639,3394.0,3392.9,3.798621]
[1721121551032,3.241029,3394.0,3392.9,3.798621]
[1721121551262,2.94654,3393.9,3393.1,2.94715]
[1721121551574,0.294639,3394.0,3393.1,2.94715]
[1721121551575,2.94656,3393.8,3393.1,2.94715]
[1721121552068,2.94646,3393.9,3393.2,2.947]
[1721121552468,0.294639,3394.0,3393.3,2.94698]
[1721121552671,3.241019,3394.0,3393.3,2.94698]
[1721121552901,2.94629,3394.1,3393.4,2.94689]
[1721121554470,2.94615,3394.3,3393.4,2.94689]
[1721121555099,2.9462,3394.2,3393.4,2.94689]
[1721121555770,2.9462,3394.2,3393.5,2.3957]
[1721121555987,3.86746793,3394.5,3393.5,5.34249]
[1721121556170,0.74054718,3394.4,3393.5,5.34249]
[1721121556400,3.86739793,3394.6,3393.7,2.94656]
[1721121556569,3.86739793,3394.6,3393.8,2.94648]
[1721121556785,2.94587,3394.6,3393.9,2.94645]
[1721121557496,0.92152793,3394.7,3394.0,2.94637]
[1721121557678,3.86724793,3394.8,3394.0,3.535661]
[1721121558017,2.94572,3394.8,3394.0,2.94637]
[1721121558373,0.92152793,3394.8,3394.1,2.4728]
[1721121558570,3.86713793,3394.9,3394.1,2.4728]
[1721121558798,0.92152793,3394.8,3394.1,5.41904]
[1721121559474,2.94561,3394.9,3394.1,5.41904]
[1721121559475,0.92152793,3394.9,3394.4,2.94594]
[1721121560107,0.92152793,3394.9,3394.5,2.94593]
[1721121560827,0.92152793,3394.9,3394.1,6.255551]
[1721121560993,0.92152793,3394.8,3394.1,5.41901]
[1721121561197,0.92152793,3394.8,3394.2,2.94617]
[1721121561423,0.92152793,3394.7,3394.2,2.94617]
[1721121562021,0.92152793,3394.8,3394.2,5.38057]
[1721121562220,0.92152793,3394.7,3394.2,5.38057]
[1721121562442,0.92152793,3394.8,3394.5,2.94593]
[1721121562603,0.92152793,3394.9,3394.5,2.94593]
[1721121562804,0.92152793,3394.9,3394.3,4.086477]
[1721121563048,0.92152793,3394.9,3394.4,2.94602]
[1721121563206,0.92152793,3394.9,3394.5,2.9459]
[1721121564139,0.92152793,3394.9,3394.6,2.94583]
[1721121564496,0.92152793,3395.1,3394.7,2.4812]
[1721121564701,0.92152793,3395.3,3395.0,3.077]
[1721121564903,0.92152793,3395.5,3394.4,0.9467077]
[1721121565138,3.86685793,3395.2,3394.3,2.4812]
[1721121565373,0.92152793,3395.1,3394.5,2.94593]
[1721121565703,0.92152793,3395.2,3394.5,2.94593]
[1721121566311,2.94524,3395.3,3394.4,2.94599]
[1721121566312,0.92152793,3395.1,3394.4,2.94599]
[1721121566504,0.92152793,3395.2,3394.5,0.850419]
[1721121566704,4.17391391,3395.4,3394.5,0.850419]
[1721121566705,0.92152793,3395.3,3394.7,2.94575]
[1721121567129,0.92152793,3395.3,3394.9,2.94551]
[1721121567341,0.92152793,3395.4,3395.0,2.94549]
[1721121567541,0.92152793,3395.5,3395.0,2.94549]
[1721121567749,0.92152793,3395.5,3395.0,3.534606]
[1721121568347,0.92152793,3395.5,3394.8,2.94567]
[1721121568533,0.92152793,3395.8,3395.4,3.077]
[1721121568856,0.92152793,3396.0,3395.4,6.02209]
[1721121569020,1.79810537,3396.2,3395.5,2.94505]
[1721121569222,0.92152793,3396.2,3395.5,2.94505]
[1721121569460,0.92152793,3396.2,3395.1,2.4482]
[1721121569461,0.92152793,3396.2,3395.1,5.39361]
[1721121569620,1.22870391,3396.4,3395.1,5.39361]
[1721121569621,0.92152793,3395.8,3395.1,2.4482]
[1721121570031,2.94472,3395.9,3395.1,2.4482]
[1721121570032,0.92152793,3395.9,3395.1,2.4482]
[1721121570225,0.92152793,3395.9,3395.3,2.94522]
[1721121570461,0.92152793,3396.0,3395.4,2.94509]
[1721121570758,0.92152793,3396.0,3395.1,2.4482]
[1721121570759,0.92152793,3395.8,3395.1,2.4482]
[1721121570958,0.92152793,3395.8,3395.1,6.240603]
[1721121571162,3.86640793,3395.8,3395.1,2.4482]
[1721121571325,0.92152793,3395.5,3394.6,8.45495]
[1721121571520,0.92152793,3395.5,3394.7,2.94575]
[1721121571843,3.86669793,3395.4,3394.6,8.45493]
[1721121572070,0.92152793,3395.3,3394.6,5.37793]
[1721121572224,0.92152793,3395.3,3394.7,3.8631859]
[1721121572428,0.92152793,3395.4,3394.8,2.94567]
[1721121572621,3.26322793,3395.4,3393.9,2.3375]
[1721121572834,3.26322793,3395.4,3394.2,2.94614]
[1721121572835,3.86703793,3395.0,3394.2,2.94614]
[1721121573034,0.92152793,3394.9,3394.2,2.94614]
[1721121573264,0.92152793,3394.8,3394.3,0.589251]
[1721121573450,0.92152793,3394.9,3394.3,3.535361]
[1721121573626,0.92152793,3395.0,3394.3,3.535361]
[1721121574231,0.92152793,3395.2,3394.4,2.94601]
[1721121574430,0.92152793,3395.4,3394.9,2.94552]
[1721121574659,0.92152793,3395.5,3394.9,3.240072]
[1721121575159,0.92152793,3395.5,3395.0,2.94548]
[1721121575466,0.92152793,3395.7,3395.0,2.94548]
[1721121575643,0.92152793,3395.7,3395.1,2.94541]
[1721121575839,0.92152793,3395.7,3395.2,0.5497962]
[1721121576045,0.92152793,3395.8,3395.2,0.5497962]
[1721121576361,0.92152793,3395.9,3395.3,2.94518]
[1721121576758,0.92152793,3395.9,3395.4,2.94516]
[1721121576958,0.92152793,3395.9,3395.4,0.64403662]
[1721121577163,0.92152793,3395.9,3395.5,2.94503]
[1721121577466,0.92152793,3396.1,3395.4,0.64403662]
[1721121577628,3.86610793,3396.1,3395.4,3.58919662]
[1721121577829,3.86610793,3396.1,3395.5,0.41389928]
[1721121578029,3.86616793,3396.0,3395.4,0.64403662]
[1721121578258,3.86616793,3396.0,3395.2,0.5497962]
[1721121578259,0.92152793,3395.8,3395.2,0.5497962]
[1721121578633,3.86643793,3395.7,3395.2,0.5497962]
[1721121578978,3.86643793,3395.7,3395.0,2.258]
[1721121579174,2.94491,3395.7,3395.0,2.258]
[1721121579466,0.92335187,3395.7,3395.0,2.258]
[1721121579663,3.86800187,3396.0,3395.3,2.94521]
[1721121579877,0.92335187,3395.9,3395.1,2.94536]
[1721121580081,2.94489,3395.8,3395.2,1.122584]
[1721121580277,0.92335187,3395.7,3395.2,1.122584]
[1721121580569,3.86809187,3395.9,3395.2,1.122584]
[1721121581069,0.92335187,3395.8,3395.2,1.122584]
[1721121582168,3.86816187,3395.8,3395.2,1.122584]
[1721121582388,3.86816187,3395.8,3395.0,2.258]